Cogmind - Beta 13 @@@ ROGUE MODE // 2024.07.28 @ 03:50:34 Player: Johnny5001 Result: Self-destructed Performance ------------- Evolutions (4) 2000 Regions Visited (6) 1200 Robots Destroyed (30) 150 Value Destroyed (667) 667 Prototype IDs (10) 200 Alien Tech Used (0) 0 Bonus (546) 546 TOTAL SCORE: 4763 Bonus ------- Follower Combat Kills 546 Cogmind --------- Core Integrity 850/850 Matter 280/300 Energy 100/100 System Corruption 0% Temperature Cool (0) Movement Hovering (51) Location -6/Factory Parts ------- > --- POWER (1) -------- (None) > --- PROPULSION (2) --- Airjet Aerolev Unit > --- UTILITY (2) ------ Improved Light Armor Plating Authchip [R/NC] > --- WEAPON (10) ------ Katana Katana > --- INVENTORY (5) ---- Light Ion Engine Armored Wheel Scrap Engine Enhanced Autogun Peak State ------------ > --- POWER ------------ (None) > --- PROPULSION ------- Improved Flight Unit Improved Flight Unit > --- UTILITY ---------- Light Armor Plating Authchip [R/NC] > --- WEAPON ----------- Enhanced Autogun Enhanced Autogun Katana Katana > --- INVENTORY -------- Light Ion Engine Armored Wheel [Rating: 25] Favorites ----------- Power Ion Engine Engine Ion Engine Propulsion Light Treads Treads Light Treads Leg Aluminum Leg Wheel Armored Wheel Hover Unit Aerolev Unit Flight Unit Improved Flight Unit Utility Light Armor Plating Storage Small Storage Unit Hackware Authchip [R/NC] Protection Light Armor Plating Weapon Autogun Energy Gun Small Laser Ballistic Gun Autogun Impact Weapon Maul Slashing Weapon Katana Build | -11 -10 -10 -8 -8 -8 -6 ------- Run | Yrd Mat Sub Mat Sto Rec Fac Slots Evolved 8 | . . . 4 . . 4 Power . | . . . . . . . Propulsion . | . . . . . . . Utility . | . . . . . . . Weapon 8 | . . . 4 . . 4 Parts Attached 36 | . 9 6 4 13 4 . Power 2 | . . 1 . 1 . . Engine 2 | . . 1 . 1 . . Core . | . . . . . . . Reactor . | . . . . . . . Propulsion 11 | . 3 2 2 3 1 . Treads 2 | . . 2 . . . . Leg . | . . . . . . . Wheel 3 | . 3 . . . . . Hover 3 | . . . . 2 1 . Flight 3 | . . . 2 1 . . Utility 7 | . 1 1 . 3 2 . Device . | . . . . . . . Storage . | . . . . . . . Processor . | . . . . . . . Hackware 2 | . . . . 2 . . Protection 5 | . 1 1 . 1 2 . Artifact . | . . . . . . . Weapon 16 | . 5 2 2 6 1 . Energy Gun 2 | . . . . 2 . . Energy Cannon . | . . . . . . . Ballistic Gun 10 | . 5 2 1 2 . . Ballistic Cannon . | . . . . . . . Launcher . | . . . . . . . Special Weapon . | . . . . . . . Impact Weapon 1 | . . . 1 . . . Slashing Weapon 3 | . . . . 2 1 . Piercing Weapon . | . . . . . . . Special Melee Weapon . | . . . . . . . Unidentified Prototypes 6 | . . . 1 5 . . Parts Lost 5 | . . . 4 . 1 . Power . | . . . . . . . Propulsion 2 | . . . 1 . 1 . Utility 2 | . . . 2 . . . Weapon 1 | . . . 1 . . . Highest Loss Streak 2 | . . . 2 . 1 . To Critical Strikes . | . . . . . . . Average Slot Usage (%) 83 | . 94 99 65 51 50 40 Engine 10 | . 14 14 7 . . . Treads 12 | . . 27 15 . . . Wheel 6 | . 25 . . . . . Hover 1 | . . . . 1 12 13 Flight 2 | . . . 1 15 1 . Storage 3 | . 14 . . . . . Hackware 1 | . . . . 6 9 6 Protection 16 | . 8 27 10 8 9 6 Ballistic Gun 20 | . 26 28 22 5 . . Slashing Weapon 4 | . . . . 15 18 13 Naked Turns . | . . . . . . . Heaviest Build 25 | 10 17 19 25 10 7 7 Greatest Support 40 | 20 24 40 40 10 16 16 Greatest Overweight (x) 1 | . . . . 1 . . Average Overweight (x) . | . . . . . . . Largest Inventory Capacity 8 | . 8 8 5 5 5 5 Average Capacity 5 | . 8 5 5 5 5 5 Most Carried 8 | . 8 8 5 3 5 5 Average Carried 5 | . 7 5 3 2 5 5 Final Capacity 8 | 8 8 5 5 5 5 5 Final Carried 8 | 6 8 5 3 3 5 5 Class Distribution -------------------- 77% | Mutant 16% | Commander-Mutant 5% | Tank Dominant Class ---------------- Mutant | -10/Materials Mutant | -10/Subcaves Tank | -8/Materials Commander-Mutant | -8/Storage Mutant | -8/Recycling Commander-Mutant | -6/Factory Resources | -11 -10 -10 -8 -8 -8 -6 ----------- Run | Yrd Mat Sub Mat Sto Rec Fac Matter Collected 869 | 169 193 272 53 117 65 . Remotely . | . . . . . . . Salvage Created 1128 | . 382 203 42 83 418 . Parts 78 | . 36 20 3 4 15 . Haulers Intercepted 2 | . 1 . . 1 . . Recyclers Shooed . | . . . . . . . Parts Field Recycled . | . . . . . . . Retrieved Matter . | . . . . . . . Parts Self-Destructed 12 | . . 12 . . . . Prevented . | . . . . . . . Kills | -11 -10 -10 -8 -8 -8 -6 ------- Run | Yrd Mat Sub Mat Sto Rec Fac Combat Hostiles Destroyed 25 | . 12 8 1 1 3 . Melee 4 | . . . . 1 3 . Guns 21 | . 12 8 1 . . . Classes Destroyed 9 | . 6 1 1 . 1 . Worker 1 | . 1 . . . . . Tunneler 1 | . 1 . . . . . Hauler 2 | . 1 . . 1 . . Watcher 1 | . 1 . . . . . Swarmer 14 | . 9 5 . . . . Grunt 4 | . 3 . . 1 . . Sentry 2 | . . . . . 2 . Hunter 2 | . . . 1 . 1 . Subdweller 3 | . . 3 . . . . Best Kill Streak 6 | . 6 4 1 1 1 . Combat Bots Only 6 | . 6 4 1 1 1 . Max Kills in Single Turn 2 | . 2 1 1 1 1 . Gunslinging 1 | . 1 . . . . . Exploded . | . . . . . . . Melee 1 | . . . . 1 1 . Uniques/NPCs Destroyed . | . . . . . . . Combat | -11 -10 -10 -8 -8 -8 -6 -------- Run | Yrd Mat Sub Mat Sto Rec Fac Hostile Shots Fired 154 | . 44 21 68 9 12 . Missed 51 | . 10 7 28 5 1 . Damage Taken 1209 | . 293 131 542 78 165 . Core 254 | . 83 9 115 . 47 . Absorbed by Shields . | . . . . . . . Core Remaining (%) 77 | 100 . 63 . . 70 . Volleys Fired 56 | . 30 19 5 2 . . Largest 3 | . 2 2 3 1 . . Hottest 83 | . 46 53 83 25 . . Shots Fired 115 | . 60 38 15 2 . . Gun 115 | . 60 38 15 2 . . Cannon . | . . . . . . . Launcher . | . . . . . . . Special . | . . . . . . . Kinetic 115 | . 60 38 15 2 . . Thermal . | . . . . . . . Explosive . | . . . . . . . Electromagnetic . | . . . . . . . Robot Hit Streak 10 | . 10 7 4 5 . . Robot Miss Streak 7 | . 7 3 3 . . . Penetration Max . | . . . . . . . Secondary Targets 2 | . 2 . . . . . Max Gunslinging Chain 1 | . 1 . . . . . Shots Hit Robots 83 | . 30 21 8 3 21 . Core Hits 39 | . 20 10 2 2 5 . Critical Kills 2 | . 1 1 . . . . Critical Parts Destroyed . | . . . . . . . Critical Strikes 3 | . 1 1 . . 1 . Destroy 2 | . 1 1 . . . . Sever 1 | . . . . . 1 . Melee Attacks 34 | . . . 1 7 26 . Impact 1 | . . . 1 . . . Slashing 33 | . . . . 7 26 . Piercing . | . . . . . . . Sneak Attacks 4 | . . . . 1 3 . Combat Hostiles 3 | . . . . . 3 . Follow-up Attacks 3 | . . . . . 3 . Damage Inflicted 2050 | . 360 380 117 115 1078 . Guns 863 | . 360 380 109 14 . . Cannons . | . . . . . . . Explosions . | . . . . . . . Melee 1179 | . . . . 101 1078 . Ramming 8 | . . . 8 . . . Kinetic 863 | . 360 380 109 14 . . Thermal . | . . . . . . . Explosive . | . . . . . . . Electromagnetic . | . . . . . . . Impact . | . . . . . . . Slashing 1179 | . . . . 101 1078 . Piercing . | . . . . . . . Highest Corruption 2 | . . . 2 2 2 . Average Corruption 1 | . . . 1 2 2 . Corruption Purged . | . . . . . . . Corruption Blocked . | . . . . . . . Effects 10 | . . . 1 3 6 . Message Errors 3 | . . . . 1 2 . Matter Fused 3 | . . . 1 2 . . Heat Flow Errors 1 | . . . . . 1 . Energy Discharges 1 | . . . . . 1 . Data Loss (minor) 2 | . . . . . 2 . Overload Shots . | . . . . . . . Overflow Damage 208 | . . . . . 208 . Projectiles . | . . . . . . . Explosions . | . . . . . . . Melee 208 | . . . . . 208 . Knockbacks . | . . . . . . . Impact . | . . . . . . . Kinetic . | . . . . . . . Secondary . | . . . . . . . Self-Inflicted Damage 4 | . . . 4 . . . Shots . | . . . . . . . Rammed 1 | . . . 1 . . . Targets Rammed 1 | . . . 1 . . . Kicked . | . . . . . . . Crushed . | . . . . . . . Highest Temperature 90 | . 25 . 48 3 90 . Average Temperature 14 | . 8 . 20 3 54 . Received Heat Transfer 273 | . 48 . 153 36 36 . Siege Activations . | . . . . . . . Robots Corrupted . | . . . . . . . Combat Hostiles . | . . . . . . . Parts Fried . | . . . . . . . Impact Corruptions . | . . . . . . . Robots Melted . | . . . . . . . Combat Hostiles . | . . . . . . . Parts Melted . | . . . . . . . Heat Transferred . | . . . . . . . Parts Sabotaged . | . . . . . . . Parts Stolen . | . . . . . . . Parts Stripped . | . . . . . . . Power Chain Reactions . | . . . . . . . Alert | -11 -10 -10 -8 -8 -8 -6 ------- Run | Yrd Mat Sub Mat Sto Rec Fac Peak Influence 604 | . 355 . 157 604 487 220 Initial 220 | . . . 10 61 211 220 Average 218 | . 154 . 64 308 358 220 Maximum Alert Level 2 | . 1 . . 2 2 1 Low Security (%) 45 | . 53 . 100 45 . . Level 1 41 | . 46 . . 15 72 100 Level 2 13 | . . . . 38 27 . Level 3 . | . . . . . . . Level 4 . | . . . . . . . Level 5 . | . . . . . . . High Security . | . . . . . . . Max Security . | . . . . . . . Squads Dispatched 12 | . 3 . 3 6 . . Investigation 5 | . 1 . 3 1 . . Extermination . | . . . . . . . Reinforcement 4 | . 2 . . 2 . . Assault 2 | . . . . 2 . . Garrison 1 | . . . . 1 . . Intercept . | . . . . . . . Searches Triggered . | . . . . . . . Construction Impeded 1 | . . . . 1 . . Haulers Reinforced . | . . . . . . . Active Scanning Responses . | . . . . . . . Cargo Convoy Interrupts . | . . . . . . . Stealth | -11 -10 -10 -8 -8 -8 -6 --------- Run | Yrd Mat Sub Mat Sto Rec Fac Distress Signals 4 | . 1 . 1 2 . . Communications Jammed . | . . . . . . . Distress Signals . | . . . . . . . Times Spotted 58 | . 19 9 14 12 4 . Peak Tracking Total 10 | . 7 6 10 3 3 . Tactical Retreats 2 | . . 1 1 . . . Traps | -11 -10 -10 -8 -8 -8 -6 ------- Run | Yrd Mat Sub Mat Sto Rec Fac Traps Triggered 2 | . . . 2 . . . Indirectly . | . . . . . . . Trap Hack Attempts . | . . . . . . . Triggered . | . . . . . . . Disarmed . | . . . . . . . Reprogrammed . | . . . . . . . Reused . | . . . . . . . Traps Extracted . | . . . . . . . Installed . | . . . . . . . Triggered . | . . . . . . . Machines | -11 -10 -10 -8 -8 -8 -6 ---------- Run | Yrd Mat Sub Mat Sto Rec Fac Machines Disabled 3 | . . . 1 1 1 . Max in Single Turn 1 | . . . 1 1 1 . Garrison Access 1 | . . . . 1 . . Machines Repaired . | . . . . . . . Machines Dismantled . | . . . . . . . Machines Sabotaged . | . . . . . . . Overloaded Fab Kills . | . . . . . . . Hacking | -11 -10 -10 -8 -8 -8 -6 --------- Run | Yrd Mat Sub Mat Sto Rec Fac Machines Accessed 23 | . 4 1 6 6 6 . Terminals 19 | . 4 . 4 5 6 . Fabricators . | . . . . . . . Repair Stations 1 | . . . 1 . . . Recycling Units . | . . . . . . . Scanalyzers . | . . . . . . . Garrison Access 2 | . . . 1 1 . . Total Hacks 54 | . 8 2 16 10 18 . Successful 26 | . 4 2 7 3 10 . Failed 28 | . 4 . 9 7 8 . Catastrophic 7 | . . . 3 1 3 . Database Lockouts . | . . . . . . . Manual 34 | . 8 . 13 2 11 . Terminals 45 | . 8 . 10 9 18 . Fabricators . | . . . . . . . Repair Stations 3 | . . . 3 . . . Recycling Units . | . . . . . . . Scanalyzers . | . . . . . . . Garrison Access 4 | . . . 3 1 . . Terminal Hacks 15 | . 3 2 4 2 4 . Record 3 | . . 2 1 . . . Robot Schematic 4 | . 2 . 2 . . . Prototype ID Bank 2 | . . . 1 . 1 . Open Door 2 | . . . . 2 . . Recall Reinforcements 1 | . . . . . 1 . Zone Layout 3 | . 1 . . . 2 . Fabricator Hacks . | . . . . . . . Repair Station Hacks 1 | . . . 1 . . . Scan Component 1 | . . . 1 . . . Recycling Unit Hacks . | . . . . . . . Scanalyzer . | . . . . . . . Garrison Access Hacks 1 | . . . . 1 . . Seal Access 1 | . . . . 1 . . Unauthorized Hacks 9 | . 1 . 2 . 6 . Terminals 9 | . 1 . 2 . 6 . Track 2 | . 1 . . . 1 . Assimilate 1 | . . . 1 . . . Botnet 6 | . . . 1 . 5 . Fabricators . | . . . . . . . Repair Stations . | . . . . . . . Recycling Units . | . . . . . . . Scanalyzers . | . . . . . . . Garrison Access . | . . . . . . . Data Cores Recovered . | . . . . . . . Used . | . . . . . . . Hacking Detections 21 | . 4 . 6 5 6 . Full Trace Events 6 | . 1 . 3 . 2 . Feedback Events . | . . . . . . . Feedback Blocked . | . . . . . . . Robot Schematics Acquired 4 | . 2 . 2 . . . Robots Built . | . . . . . . . Authchips . | . . . . . . . Time . | . . . . . . . Total Robot Build Rating . | . . . . . . . Part Schematics Acquired . | . . . . . . . Parts Built . | . . . . . . . Authchips . | . . . . . . . Time . | . . . . . . . Total Part Build Rating . | . . . . . . . Parts Repaired . | . . . . . . . Time . | . . . . . . . Parts Recycled . | . . . . . . . Recycled Matter . | . . . . . . . Retrieved Matter . | . . . . . . . Retrieved Components . | . . . . . . . Parts Scanalyzed . | . . . . . . . Part Schematics Acquired . | . . . . . . . Parts Damaged . | . . . . . . . Bothacking | -11 -10 -10 -8 -8 -8 -6 ------------ Run | Yrd Mat Sub Mat Sto Rec Fac Used RIF Installer . | . . . . . . . Robots Hacked . | . . . . . . . Non-combat . | . . . . . . . Combat . | . . . . . . . Robot Hacks Applied . | . . . . . . . Relay Couplers Released . | . . . . . . . Fabnet Peak Effective % . | . . . . . . . Robots Rewired 11 | . . . . 1 10 . Allies Hacked . | . . . . . . . Hacks Repelled . | . . . . . . . Allies | -11 -10 -10 -8 -8 -8 -6 -------- Run | Yrd Mat Sub Mat Sto Rec Fac Total Allies 23 | . . . 1 12 10 . Largest Group 11 | . . . 1 10 11 10 Highest-Rated Group 232 | . . . 10 173 232 217 Highest-Rated Ally 34 | . . . 10 31 34 34 Total Orders 2 | . . . . . 2 . TUNNEL 2 | . . . . . 2 . Ally Attacks 142 | . . . . 120 22 . Total Damage 1870 | . . . . 1515 355 . Kills 23 | . . . . 18 5 . Allies Corrupted . | . . . . . . . Allies Melted . | . . . . . . . Intel | -11 -10 -10 -8 -8 -8 -6 ------- Run | Yrd Mat Sub Mat Sto Rec Fac Robot Analysis Total . | . . . . . . . Derelict Logs Recovered 2 | . . 2 . . . . Drone Launches . | . . . . . . . Drone Recoveries . | . . . . . . . Exploration | -11 -10 -10 -8 -8 -8 -6 ------------- Run | Yrd Mat Sub Mat Sto Rec Fac Turns Passed 2913 | . 776 1173 235 305 415 9 Spaces Moved 1918 | 1 439 570 183 344 365 16 Core 34 | . . . . 34 . . Treads 682 | . . 568 114 . . . Legs 71 | 1 70 . . . . . Wheels 371 | . 369 2 . . . . Hover 416 | . . . . 35 365 16 Flight 344 | . . . 69 275 . . Fastest Speed 37 | 120 90 90 37 37 50 51 Average Speed 98 | 120 94 159 113 46 50 51 Slowest Speed 160 | 120 120 160 160 110 51 51 Overloaded Moves . | . . . . . . . Propulsion Burnouts . | . . . . . . . Robots Hopped 4 | . . . 3 1 . . Cave-ins Triggered . | . . . . . . . Exploration Rate (%) 42 | 2 85 36 34 65 71 1 Regions Visited 6 Branch Regions 3 Pre-discovered Areas 1 | . . 1 . . . . Known Exits Taken . | . . . . . . . Unknown Exits Taken 6 | 1 1 1 1 1 1 . Scrap Searched 5 | . . 5 . . . . Spaces Dug . | . . . . . . . Terrain Destroyed . | . . . . . . . Melee . | . . . . . . . Projectile . | . . . . . . . AOE . | . . . . . . . Terrain Rammed . | . . . . . . . Walls Destroyed . | . . . . . . . Machines Disabled . | . . . . . . . Actions | -11 -10 -10 -8 -8 -8 -6 --------- Run | Yrd Mat Sub Mat Sto Rec Fac Total 2800 | . 748 801 196 477 562 16 Wait 657 | . 257 200 . 106 94 . Move 1906 | . 438 569 178 341 364 16 Hop 3 | . . . 2 1 . . Pick Up 8 | . 5 2 . . 1 . Fast Attach 21 | . 3 2 2 12 2 . Attach 4 | . . 1 2 1 . . Detach 1 | . . . . 1 . . Swap 11 | . 6 3 . . 2 . Drop 30 | . 9 5 6 7 3 . Fire 56 | . 30 19 5 2 . . Melee 28 | . . . 1 5 22 . Ram . | . . . . . . . Kick . | . . . . . . . Crush . | . . . . . . . Escape Stasis . | . . . . . . . Rewire 75 | . . . . 1 74 . Trap . | . . . . . . . Miscellaneous . | . . . . . . . Route ------- -11/Scrapyard -10/Materials (discovered 5 exits: [*Mat x3] / [*Min] / *Sub) -10/Subcaves -8/Materials -8/Storage -8/Recycling -6/Factory History --------- Turn | Location | Event 1 | -11/Scrapyard | Discovered new exit (range 0) 1 | -11/Scrapyard | Entered Materials 261 | -10/Materials | Discovered new exit (range 7) 278 | -10/Materials | Discovered new exit (range 4) 311 | -10/Materials | Build established: Mutant 407 | -10/Materials | Discovered new exit (range 4) 479 | -10/Materials | Discovered new exit (range 7) 754 | -10/Materials | Discovered new exit (range 5) 777 | -10/Materials | Entered Subcaves 778 | -10/Subcaves | Learned Materials interactive machine intel 1303 | -10/Subcaves | Ambushed by Subdwellers from Twisted Machinery 1795 | -10/Subcaves | Discovered new exit (range 14) 1833 | -10/Subcaves | A swath of the cavern ceiling suddenly collapsed 1934 | -10/Subcaves | Visited Clippyterm 1939 | -10/Subcaves | Learned Factory stockpile data 1950 | -10/Subcaves | Entered Materials 1950 | -8/Materials | Evolved 4 slots: Weapon x4 1951 | -8/Materials | Loaded intel: 19 interactive machine locations 2181 | -8/Materials | Discovered new exit (range 12) 2185 | -8/Materials | Entered Storage 2221 | -8/Storage | Assisted by bots powering up and referring to "LRC-V3" 2400 | -8/Storage | Garrison activated, responded to threat 2467 | -8/Storage | Lost 4 allies 2480 | -8/Storage | Met a pair of Derelict thieves 2484 | -8/Storage | Used back door to open Recycling access 2484 | -8/Storage | Discovered new exit (range 5) 2490 | -8/Storage | Entered Recycling 2490 | -8/Recycling | Accompanied by 2 allies 2490 | -8/Recycling | Found Scrap Engine 2835 | -8/Recycling | Discovered new exit (range 13) 2905 | -8/Recycling | Entered Factory 2905 | -6/Factory | Accompanied by 10 allies 2905 | -6/Factory | Evolved 4 slots: Weapon x4 2914 | -6/Factory | Self-destructed Last Messages --------------- 02789_ Excavator 3a is excavating. 02791_ R-06 Scavenger collects Imp. Heat Sink. 02795_ R-06 Scavenger collects Lgt. Treads. 02797_ R-06 Scavenger collects Imp. Heat Sink. 02799_ R-06 Scavenger collects Particle Gun. 02800_ R-06 Scavenger collects Lgt. Treads. 02802_ R-06 Scavenger collects Aluminum Leg. 02810_ System corrupted: Heat flow error (+113). 02827_ Connecting with Terminal... >>Trojan(Botnet) Trojan loaded successfully. Testing... Terminal linked with 4 systems. Awaiting botnet instructions. 02835_ EXIT=FOUND [Achievement: Executioner] PARAMETERS=WEAPON+4 LOCATION=UNKNOWN GOAL=ESCAPE Loading Factory stockpile data (x7)... Map ----- +----------------------------------------------------+ | ?????????????????????????????????????????????????? | | ?????????????????????????????????????????????????? | | ?????????????????????????????????????????????????? | | ?????????????????????????????????????????????????? | | ?????????????????????????????????????????????????? | | ?????????????????????????????????????????????????? | | ?????????????????????????????????????????????????? | | ?????????????????????????????????????????????????? | | ?????????????????????????????????????????????????? | | ??????????????????????????#???????##?????????????? | | ????????????????########### ????? #?????????????? | | ????????????????# # ? #?????????????? | | ????????????????# # """" =#?????????????? | | ????????????????# # """" #?????????????? | | ????????????????# # """" #?????????????? | | ????????????????# # """" #?????????????? | | ?????????????????? # #?????????????? | | ???????????????????? # #?????????????? | | ?????????????????????? #?? ???????????????? | | ?????????????????#+#####+######+####?????????????? | | ?????????????????# i #?????????????? | | ?????????????????# Yb #?????????????? | | ?????????????????# idgbg #?????????????? | | ?????????????????# g #?????????????? | | ?????????????????# g #?????????????? | | ?????????????????#+######@## ###?????????????? | | ??????????????????????? # #???????????????? | | ?????????????????????""""" # #???????????????? | | ??????????????????? + +???????????????? | | ?????????????????""""""""" # #??????]????????? | | ????????????????? # #???????????????? | | ????????????????? # #???????????????? | | ??????????????????########## #???????????????? | | ???????????????????????????# #???????????????? | | ??????????????????????????? #???????????????? | | ??????????????????????????? ????????????????? | | ???????????????????????????? ????????????????? | | ?????????????????????????????? ????????????????? | | ?????????????????????????????????????????????????? | | ?????????????????????????????????????????????????? | | ?????????????????????????????????????????????????? | | ?????????????????????????????????????????????????? | | ?????????????????????????????????????????????????? | | ?????????????????????????????????????????????????? | | ?????????????????????????????????????????????????? | | ?????????????????????????????????????????????????? | | ?????????????????????????????????????????????????? | | ?????????????????????????????????????????????????? | | ?????????????????????????????????????????????????? | | ?????????????????????????????????????????????????? | +----------------------------------------------------+ Best States ------------- Heat Dissipation 37 Energy Generation 10 Energy Capacity 250 Matter Stores 300 Matter Capacity 300 Sight Range 16 Terrain Scan Density 10 Armor Coverage 300 Evasion (%) 62 Recoil Reduction 2 Authchip Count 1 Item Schematics ----------------- None Robot Schematics ------------------ W-16 Scout | -10/Materials | Hacked K-01 Serf | -10/Materials | Hacked A-02 Transporter | -8/Materials | Hacked Y-45 Defender | -8/Materials | Hacked Fabricated ------------ Nothing Alien Tech Used ----------------- None Achievements -------------- Executioner Challenges ------------ None Game ------ Seed TrapAssaultRifle Manual? 0 Play Time 00:39:59 Cumulative 66.5 hours Start 2024.07.28 @ 03:07:29 End 2024.07.28 @ 03:50:34 Sessions 1 Manual Loads 0 Difficulty Rogue Special Mode None Game No. 41 Rogue 41 Adventurer 0 Explorer 0 Win Type - Total 6 Types 4/0/1/1/0/0/0/0/0 Lore% 49 Gallery% 54 Achievement% 51 Wizard Run 0 Options --------- Layout 1 ASCII 0 Keyboard 0 Movement Mouse Keybinds 0 Fullscreen 1 Font 24/Smallcaps Map View 50x35 Zoom Use 0% Tactical HUD 1 Map Filters NONE Filters NONE Steam 0 RUN: dafc2fee-8de4-4108-a846-3bdba52caf68